Cogmind - Beta 16 --- EXPLORER MODE // 2025.11.20 @ 13:35:27 Player: K.K.Y. Result: Destroyed by 0V-V73(R) with Subdweller Laser Performance ------------- Evolutions (0) 0 Regions Visited (3) 600 Robots Destroyed (18) 90 Value Destroyed (347) 347 Prototype IDs (0) 0 Alien Tech Used (0) 0 Bonus (85) 85 TOTAL SCORE: 1122 Bonus ------- Follower Combat Kills 85 Cogmind --------- Core Integrity 0/250 Matter 250/300 Energy 17/100 System Corruption 0% Temperature Cool (6) Movement Core (1500) Ox29 Location -10/Subcaves Parts ------- > --- POWER (1) -------- (None) > --- PROPULSION (2) --- (None) > --- UTILITY (3) ------ Huge Storage Unit Structural Scanner > --- WEAPON (2) ------- Flak Cannon Mining Laser > --- INVENTORY (25) --- Light Treads Light Treads Light Treads Improved Heat Sink Medium Storage Unit Humpback High-capacity Matter Pod (200) Machine Analyzer Terrain Scanner Target Analyzer Core Shielding Pulse Rifle Ion Cannon Peak State ------------ > --- POWER ------------ Ion Engine > --- PROPULSION ------- Light Treads Light Treads > --- UTILITY ---------- Medium Storage Unit Huge Storage Unit Structural Scanner > --- WEAPON ----------- Medium Laser Hammer > --- INVENTORY -------- Terrain Scanner Core Shielding Mining Laser [Rating: 8] Favorites ----------- Power Ion Engine Engine Ion Engine Propulsion Light Treads Treads Light Treads Utility Structural Scanner Device Structural Scanner Storage Huge Storage Unit Weapon Hammer Energy Gun Medium Laser Ballistic Cannon Flak Cannon Special Weapon Mining Laser Impact Weapon Hammer Build | -11 -10 -10 -10 ------- Run | Yrd Mat Min Sub Slots Evolved 1 | . 1 . . Power . | . . . . Propulsion . | . . . . Utility 1 | . 1 . . Weapon . | . . . . Parts Attached 11 | 5 4 . 2 Power 2 | 1 1 . . Engine 2 | 1 1 . . Core . | . . . . Reactor . | . . . . Propulsion 2 | 2 . . . Treads 2 | 2 . . . Leg . | . . . . Wheel . | . . . . Hover . | . . . . Flight . | . . . . Utility 3 | 2 1 . . Device 1 | 1 . . . Storage 2 | 1 1 . . Processor . | . . . . Hackware . | . . . . Protection . | . . . . Artifact . | . . . . Weapon 4 | . 2 . 2 Energy Gun 1 | . 1 . . Energy Cannon . | . . . . Ballistic Gun . | . . . . Ballistic Cannon 1 | . . . 1 Launcher . | . . . . Special Weapon 1 | . . . 1 Impact Weapon 1 | . 1 . . Slashing Weapon . | . . . . Piercing Weapon . | . . . . Special Melee Weapon . | . . . . Unidentified Prototypes . | . . . . Parts Lost 5 | . . 1 4 Power 1 | . . . 1 Propulsion 2 | . . . 2 Utility . | . . . . Weapon 2 | . . 1 1 Highest Loss Streak 2 | . . 1 2 To Critical Strikes . | . . . . Average Backups 6 | 2 3 7 13 Power . | . . . . Propulsion 1 | . . 1 3 Utility 3 | 1 1 3 7 Weapon 1 | . 1 2 3 Tool/Special . | . . . . Unused Backups 11 | . . . 11 Power . | . . . . Propulsion 3 | . . . 3 Utility 6 | . . . 6 Weapon 2 | . . . 2 Tool/Special . | . . . . Average Slot Usage (%) 83 | . 93 82 50 Engine 11 | . 12 12 5 Treads 23 | . 25 25 7 Device 12 | . 12 12 12 Storage 18 | . 20 17 12 Energy Gun 5 | . 10 2 . Impact Weapon 11 | . 10 12 11 Peak Build Rating 8 | 5 8 8 8 Average Rating 7 | 2 7 7 6 On Entrance 5 | . 5 8 8 Avg Prop Armor Cover (%) . | . . . . Naked Turns . | . . . . Heaviest Build 100 | 16 100 100 88 Greatest Support 40 | 40 40 40 40 Greatest Overweight (x) 27 | 4 2 2 27 Average Overweight (x) 1 | . . 2 8 Largest Inventory Capacity 25 | 10 25 25 25 Average Capacity 22 | 8 19 25 25 Most Carried 16 | 5 5 12 16 Average Carried 6 | 3 3 7 14 Final Capacity 25 | 10 25 25 25 Final Carried 14 | 2 3 12 14 Class Distribution -------------------- 100% | Hacker-Mutant Dominant Class ---------------- Hacker-Mutant | -10/Materials Hacker-Mutant | -10/Mines Hacker-Mutant | -10/Subcaves Resources | -11 -10 -10 -10 ----------- Run | Yrd Mat Min Sub Matter Collected 290 | 208 82 . . Remotely . | . . . . Salvage Created 579 | . 511 68 . Parts 25 | . 23 2 . Haulers Intercepted 1 | . 1 . . Recyclers Shooed . | . . . . Parts Field Recycled . | . . . . Retrieved Matter . | . . . . Parts Self-Destructed . | . . . . Prevented . | . . . . Parts Restored . | . . . . Kills | -11 -10 -10 -10 ------- Run | Yrd Mat Min Sub Combat Hostiles Destroyed 11 | . 10 1 . Melee 1 | . 1 . . Guns 6 | . 6 . . Classes Destroyed 6 | . 6 . . Worker 3 | . 2 1 . Hauler 1 | . 1 . . Recycler 1 | . 1 . . Watcher 2 | . 2 . . Swarmer 4 | . 4 . . Grunt 7 | . 6 1 . Best Kill Streak 4 | . 4 1 . Combat Bots Only 2 | . 2 1 . Max Kills in Single Turn 1 | . 1 1 . Gunslinging . | . . . . Exploded . | . . . . Melee 1 | . 1 . . Uniques/NPCs Destroyed . | . . . . Combat | -11 -10 -10 -10 -------- Run | Yrd Mat Min Sub Hostile Shots Fired 108 | . 74 11 23 Missed 30 | . 24 2 4 Hits 78 | . 50 9 19 Projectile 78 | . 50 9 19 AOE 12 | . . 7 5 Critical Strikes 1 | . . . 1 Damage Taken 889 | . 302 230 357 Core 253 | . 65 46 142 Absorbed by Shields . | . . . . Ignored by Resistances 548 | . 205 134 209 Core Remaining (%) 100 | 100 . . . Volleys Fired 42 | . 37 . 5 Largest 2 | . 1 . 2 Hottest 137 | . 50 . 137 Shots Fired 44 | . 37 . 7 Gun 37 | . 37 . . Cannon 5 | . . . 5 Launcher . | . . . . Special 2 | . . . 2 Kinetic 5 | . . . 5 Thermal 39 | . 37 . 2 Explosive . | . . . . Electromagnetic . | . . . . Robot Hit Streak 20 | . 14 . 20 Robot Miss Streak 1 | . 1 . 1 Penetration Max . | . . . . Secondary Targets . | . . . . Shots Hit Robots 50 | . 41 2 7 Core Hits 17 | . 16 . 1 Critical Kills 1 | . 1 . . Critical Parts Destroyed 2 | . 1 1 . Critical Strikes 8 | . 7 1 . Burn 5 | . 5 . . Smash 3 | . 2 1 . Melee Attacks 25 | . 21 2 2 Impact 25 | . 21 2 2 Slashing . | . . . . Piercing . | . . . . Sneak Attacks 4 | . 3 1 . Combat Hostiles . | . . . . Follow-up Attacks . | . . . . Damage Inflicted 823 | . 721 95 7 Guns 388 | . 388 . . Cannons 7 | . . . 7 Explosions . | . . . . Melee 428 | . 333 95 . Ramming . | . . . . Kinetic 7 | . . . 7 Thermal 388 | . 388 . . Explosive . | . . . . Electromagnetic . | . . . . Impact 428 | . 333 95 . Slashing . | . . . . Piercing . | . . . . Highest Corruption . | . . . . Average Corruption . | . . . . Corruption Purged . | . . . . Corruption Blocked . | . . . . Overload Shots . | . . . . Overflow Damage 116 | . 61 55 . Projectiles . | . . . . Explosions . | . . . . Melee 116 | . 61 55 . Knockbacks 5 | . 4 . 1 Impact 3 | . 3 . . Kinetic 1 | . . . 1 Secondary 1 | . 1 . . Self-Inflicted Damage . | . . . . Shots . | . . . . Rammed . | . . . . Targets Rammed . | . . . . Kicked . | . . . . Crushed . | . . . . Highest Temperature 247 | . 247 . . Average Temperature 91 | . 91 . . Received Heat Transfer 309 | . 201 18 90 Siege Activations . | . . . . Martial Activations . | . . . . Shielding Activations . | . . . . Robots Disrupted . | . . . . Combat Hostiles . | . . . . Robots Corrupted 4 | . 2 2 . Combat Hostiles 3 | . 2 1 . Parts Fried 5 | . 2 3 . Impact Corruptions 8 | . 5 3 . Robots Melted 1 | . 1 . . Combat Hostiles 1 | . 1 . . Parts Melted . | . . . . Heat Transferred 1517 | . 1517 . . Parts Sabotaged . | . . . . Parts Stolen . | . . . . Parts Stripped . | . . . . Power Chain Reactions . | . . . . Alert | -11 -10 -10 -10 ------- Run | Yrd Mat Min Sub Maximum Alert Level . | . . . . Low Security (%) 100 | 100 100 100 . Level 1 . | . . . . Level 2 . | . . . . Level 3 . | . . . . Level 4 . | . . . . Level 5 . | . . . . High Security . | . . . . Max Security . | . . . . Peak Influence 67 | . 67 30 . Initial . | . . . . Average 3 | . 7 . . Influence Increases 422 | . 299 70 53 Destroy 0b10 Robot/C 280 | . 200 40 40 Destroy 0b10 Robot/NC 35 | . 30 5 . Destroy Leader 56 | . 36 10 10 Allied During Kill 3 | . . . 3 Successful Hack 13 | . 13 . . Destroy Structure 5 | . 5 . . Lose Combat Pursuer 30 | . 15 15 . Influence Decreases 422 | . 299 70 53 Time Decay 402 | . 299 50 53 Lost Ally 20 | . . 20 . Squads Dispatched . | . . . . Investigation . | . . . . Extermination . | . . . . Reinforcement . | . . . . Assault . | . . . . Garrison . | . . . . Intercept . | . . . . Searches Triggered . | . . . . Construction Impeded . | . . . . Haulers Reinforced . | . . . . Active Scanning Responses . | . . . . Cargo Convoy Interrupts . | . . . . Stealth | -11 -10 -10 -10 --------- Run | Yrd Mat Min Sub Distress Signals 1 | . 1 . . Communications Jammed . | . . . . Distress Signals . | . . . . Times Spotted 26 | . 17 5 4 Peak Tracking Total 5 | . 5 2 2 Tactical Retreats 2 | . 1 1 . Traps | -11 -10 -10 -10 ------- Run | Yrd Mat Min Sub Traps Triggered 1 | . . 1 . Indirectly . | . . . . Trap Hack Attempts . | . . . . Triggered . | . . . . Disarmed . | . . . . Reprogrammed . | . . . . Reused . | . . . . Traps Extracted . | . . . . Installed . | . . . . Triggered . | . . . . Machines | -11 -10 -10 -10 ---------- Run | Yrd Mat Min Sub Machines Disabled . | . . . . Max in Single Turn . | . . . . Machines Repaired . | . . . . Machines Dismantled . | . . . . Machines Sabotaged . | . . . . Overloaded Fab Kills . | . . . . Hacking | -11 -10 -10 -10 --------- Run | Yrd Mat Min Sub Machines Accessed 3 | . 2 1 . Terminals 2 | . 2 . . Fabricators . | . . . . Repair Stations . | . . . . Recycling Units . | . . . . Scanalyzers . | . . . . Garrison Access . | . . . . Total Hacks 3 | . 2 1 . Successful 3 | . 2 1 . Failed . | . . . . Catastrophic . | . . . . Database Lockouts . | . . . . Manual . | . . . . Terminals 2 | . 2 . . Fabricators . | . . . . Repair Stations . | . . . . Recycling Units . | . . . . Scanalyzers . | . . . . Garrison Access . | . . . . Terminal Hacks 3 | . 2 1 . Robot Analysis 1 | . 1 . . Open Door 1 | . . 1 . Zone Layout 1 | . 1 . . Fabricator Hacks . | . . . . Repair Station Hacks . | . . . . Recycling Unit Hacks . | . . . . Scanalyzer . | . . . . Garrison Access Hacks . | . . . . Unauthorized Hacks . | . . . . Terminals . | . . . . Fabricators . | . . . . Repair Stations . | . . . . Recycling Units . | . . . . Scanalyzers . | . . . . Garrison Access . | . . . . Data Cores Recovered . | . . . . Used . | . . . . Hacking Detections 1 | . 1 . . Full Trace Events . | . . . . Feedback Events . | . . . . Feedback Blocked . | . . . . Robot Schematics Acquired . | . . . . Robots Built . | . . . . Authchips . | . . . . Time . | . . . . Total Robot Build Rating . | . . . . Part Schematics Acquired . | . . . . Parts Built . | . . . . Authchips . | . . . . Time . | . . . . Total Part Build Rating . | . . . . Part Studies Acquired . | . . . . Parts Repaired . | . . . . Time . | . . . . Parts Recycled . | . . . . Recycled Matter . | . . . . Retrieved Matter . | . . . . Retrieved Components . | . . . . Parts Scanalyzed . | . . . . Part Schematics Acquired . | . . . . Parts Damaged . | . . . . Bothacking | -11 -10 -10 -10 ------------ Run | Yrd Mat Min Sub Used RIF Installer . | . . . . Robots Hacked . | . . . . Non-combat . | . . . . Combat . | . . . . Robot Hacks Applied . | . . . . Relay Couplers Released . | . . . . Fabnet Peak Effective % . | . . . . Robots Rewired . | . . . . Allies Hacked . | . . . . Hacks Repelled . | . . . . Allies | -11 -10 -10 -10 -------- Run | Yrd Mat Min Sub Total Allies 5 | . . 5 . Largest Group 4 | . . 4 4 Highest-Rated Group 54 | . . 54 54 Highest-Rated Ally 31 | . . 31 16 Total Orders . | . . . . Ally Attacks 22 | . . 11 11 Total Damage 225 | . . 105 120 Kills 3 | . . 1 2 Allies Corrupted . | . . . . Allies Melted . | . . . . Intel | -11 -10 -10 -10 ------- Run | Yrd Mat Min Sub Active Infowar (turns) 3083 | 22 1328 1419 314 Structural 3083 | 22 1328 1419 314 Robot Analysis Total 1 | . 1 . . Derelict Logs Recovered . | . . . . Drone Launches . | . . . . Drone Recoveries . | . . . . Exploration | -11 -10 -10 -10 ------------- Run | Yrd Mat Min Sub Turns Passed 3121 | 60 1328 1419 314 Spaces Moved 1013 | 44 488 436 45 Core 40 | 30 . . 10 Treads 973 | 14 488 436 35 Legs . | . . . . Wheels . | . . . . Hover . | . . . . Flight . | . . . . Fastest Speed 50 | 50 160 320 320 Average Speed 286 | 114 238 320 648 Slowest Speed 1400 | 250 320 320 1400 Overloaded Moves . | . . . . Propulsion Burnouts . | . . . . Robots Hopped . | . . . . Potential Cave-ins 3 | . 3 . . Cave-ins Triggered . | . . . . Exploration Rate (%) 46 | 4 89 85 6 Regions Visited 3 Branch Regions 2 Pre-discovered Areas . | . . . . Known Exits Taken 3 | 1 1 1 . Unknown Exits Taken . | . . . . Scrap Searched 1 | . . 1 . Spaces Dug 6 | . 6 . . Terrain Destroyed 6 | . 6 . . Melee 6 | . 6 . . Projectile . | . . . . AOE . | . . . . Terrain Rammed . | . . . . Walls Destroyed . | . . . . Machines Disabled . | . . . . Actions | -11 -10 -10 -10 --------- Run | Yrd Mat Min Sub Total 1152 | 53 583 459 57 Wait 39 | . 26 13 . Move 1010 | 43 487 435 45 Hop . | . . . . Pick Up 22 | 5 6 8 3 Fast Attach 2 | 2 . . . Attach 8 | 3 3 . 2 Detach 1 | . . 1 . Swap 1 | . 1 . . Drop 2 | . 2 . . Fire 42 | . 37 . 5 Melee 25 | . 21 2 2 Ram . | . . . . Kick . | . . . . Crush . | . . . . Escape Stasis . | . . . . Rewire . | . . . . Trap . | . . . . Miscellaneous . | . . . . Route ------- -11/Scrapyard -10/Materials (discovered 5 exits: *Mat x2 / *Min x2 / Sub) -10/Mines (discovered 2 exits: *Mat / *Sub) -10/Subcaves History --------- Turn | Location | Event 15 | -11/Scrapyard | Identified exit to Materials 15 | -11/Scrapyard | Discovered exit to Materials (range 15) 61 | -11/Scrapyard | Entered Materials 61 | -10/Materials | Evolved 1 slot: Utility x1 125 | -10/Materials | Identified exit to Subcaves 125 | -10/Materials | Discovered exit to Subcaves (range 7) 309 | -10/Materials | Build established: Hacker-Mutant 346 | -10/Materials | Identified exit to Mines 346 | -10/Materials | Discovered exit to Mines (range 11) 611 | -10/Materials | Identified exit to Materials 611 | -10/Materials | Discovered exit to Materials (range 6) 916 | -10/Materials | Discovered exit to Materials (range 7) 1360 | -10/Materials | Discovered exit to Mines (range 8) 1389 | -10/Materials | Entered Mines 1563 | -10/Mines | Assembled infested the area 1735 | -10/Mines | Found DCF Scrap (13 items) 1784 | -10/Mines | Discovered exit to Materials (range 15) 2168 | -10/Mines | Met a Derelict who couldn't figure out how to use a Trap Extractor 2744 | -10/Mines | Discovered exit to Subcaves (range 14) 2751 | -10/Mines | Assisted by bots powering up and referring to "LRC-V3" 2808 | -10/Mines | Entered Subcaves 2808 | -10/Subcaves | Accompanied by 4 allies 2809 | -10/Subcaves | Approached by a straggling Scientist 2951 | -10/Subcaves | Core integrity fell below 50% 2981 | -10/Subcaves | Lost 4 allies 3107 | -10/Subcaves | Core integrity fell below 20% 3122 | -10/Subcaves | Destroyed by 0V-V73(R) with Subdweller Laser Last Messages --------------- 02845_ Acquired Machine Analyzer. 02851_ Subatomizers dissect the Wheel. 02865_ Acquired Imp. Heat Sink. 02943_ DB-D3G(R) suffers critical hit (Burn). 02944_ Ion Engine destroyed. 02944_ IT-EQ5(R) destroyed. 02944_ Trooper 1a destroyed. 02944_ Mercenary 1a destroyed. 02949_ DB-D3G(R) affixes Scrap Shield Fragment to Scrap Shield. 02950_ Trooper 1b destroyed. 02950_ E3-32Y(z) destroyed. 02958_ DB-D3G(R) affixes Scrap Shield Fragment to Scrap Shield. 02959_ Lgt. Treads destroyed. 02966_ DB-D3G(R) destroyed. 02966_ NW-I9B(R) destroyed. 03004_ Acquired Humpback. 03102_ Hammer destroyed. 03122_ 0V-V73(R) knocked back. Map ----- +----------------------------------------------------+ | | | | | | | | | | | | | | | | | ?????????????????????????????????????????????????? | | ?????????????????????????????????????????????????? | | ?????????????????????????????????????????????????? | | ?????????????????????????????????????????????????? | | ?????????????????????????????????????????????????? | | ?????????????????????????????????????????????????? | | ?????????????????????????????????????????????????? | | ?????????????????????????????????????????????????? | | ?????????????????????????????????????????????????? | | ?????????????????????????????????????????????????? | | ?????????????????????????????????????????????????? | | ?????????????????????????????????????????????????? | | ?????????????????????????????????????????????????? | | ?????????????###########??######?????????????????? | | ????????????########################?????????????? | | ????????????### ### #####" ### ##?????????????? | | ????????????## ### " """""?????????????? | | ???????????### @ R"""""????????????????? | | ???#####???###; ;####"""## ????????????????? | | #############; | "####"? ###????????????????? | | ##### ####### ##????"##?????????????????? | | ### ####" = | ##????????????????????????? | | # # "###???????????????????????? | | # ###???????????????????????? | | ### "" "#"???????????????????????? | | ## " """????????????????????? | | " # " ????????????????????? | | # " # " ???????????????????? | | #### #" # " ???????????????????? | | ##### # ##??????????????????????? | | ### # ##### ###??????????????????????? | | #### ######### ###??????????????????????? | | #### #### ??## ###???????????????????????? | | *%## ####??????? ## ???????????????????????? | | =%== ###??????? ????????????????????????? | | [![ ##??????? ????????????????????????? | | ## # ##??????? ??????????????????????? | | #### ????? ### ??????????????????????? | | ##### ? ######??????????????????????? | | ??##### ## ######????????????????????????? | | ???##### ## ##????????????????????????????? | | ?????####### ?? ????????????????????????????? | +----------------------------------------------------+ Best States ------------- Heat Dissipation 25 Energy Generation 10 Energy Capacity 250 Matter Stores 300 Matter Capacity 300 Sight Range 16 Terrain Scan Density 10 Resistance: KI 35 Resistance: TH 35 Resistance: EX 35 Resistance: EM 35 Resistance: I 35 Resistance: S 35 Resistance: P 35 Evasion (%) 50 Recoil Reduction 2 Offensive Hacking 20 Item Schematics ----------------- None Robot Schematics ------------------ None Fabricated ------------ Nothing Repaired ---------- Nothing Studied --------- None Alien Tech Used ----------------- None Achievements -------------- None Challenges ------------ None Game ------ Seed InertialDispersionMegashotty Manual? 0 Play Time 00:09:19 Cumulative 123.8 hours Start 2025.11.20 @ 13:26:51 End 2025.11.20 @ 13:35:27 Sessions 1 Manual Loads 0 Difficulty Explorer Special Mode None Game No. 142 Rogue 0 Adventurer 0 Explorer 142 Win Type - Total 0 Types 0/0/0/0/0/0/0/0/0/0 Lore% 65 Gallery% 65 Achievement% 49 Wizard Run 0 Options --------- Layout 1 ASCII 0 Keyboard 0 Movement Mouse Keybinds 0 Fullscreen 1 Font 24/Smallcaps Map View 50x35 Zoom Use 0% Tactical HUD 1 Map Filters NONE Filters NONE Steam 1 RUN: 397e6eff-0781-4996-9ee7-c5b7fff5d54c